bitfinex/quotes_SOLUSD_20260217
["timestamp","ask_amount","ask_price","bid_price","bid_amount"]
[1771307543232,0.51232337,86.279,86.251,0.53230298]
[1771307546466,0.51232337,86.279,86.253,0.53230298]
[1771307547846,0.51232337,86.278,86.253,0.53230298]
[1771307549647,0.51232337,86.278,86.254,0.53230298]
[1771307550963,0.51232337,86.283,86.256,0.53230298]
[1771307551852,12.33359534,86.284,86.261,0.53230298]
[1771307553361,12.33359534,86.284,86.263,0.53230298]
[1771307555251,0.51232337,86.283,86.263,0.53230298]
[1771307555570,28.96597582,86.309,86.265,0.53230298]
[1771307555571,0.51232337,86.295,86.265,0.53230298]
[1771307556076,16.88,86.302,86.271,0.53230298]
[1771307556374,0.51232337,86.3,86.271,0.53230298]
[1771307556679,16.88,86.302,86.281,0.53230298]
[1771307557151,0.51232337,86.312,86.281,0.53230298]
[1771307557356,11.58600873,86.311,86.281,11.59000138]
[1771307557681,0.51232337,86.31,86.282,0.53230298]
[1771307557854,0.51232337,86.299,86.26,3.2933167]
[1771307558053,0.51232337,86.299,86.239,4.61729252]
[1771307558054,16.88,86.328,86.291,0.53230298]
[1771307558266,16.88,86.327,86.291,0.53230298]
[1771307559161,3.2933167,86.34,86.291,0.53230298]
[1771307559465,16.88,86.339,86.291,0.53230298]
[1771307559675,3.2933167,86.33,86.293,0.53230298]
[1771307560074,0.51232337,86.329,86.293,0.53230298]
[1771307561867,0.51232337,86.327,86.293,0.53230298]
[1771307562561,0.51232337,86.334,86.311,0.53230298]
[1771307562766,0.51232337,86.329,86.287,11.58914165]
[1771307562972,0.51232337,86.319,86.287,11.58914165]
[1771307563570,3.2933167,86.31,86.281,11.59000247]
[1771307563763,0.51232337,86.309,86.281,11.59000247]
[1771307564675,0.51232337,86.309,86.282,0.5087168]
[1771307566378,0.52669371,86.307,86.282,0.5087168]
[1771307567979,0.52669371,86.318,86.284,0.5087168]
[1771307569857,11.58520337,86.317,86.284,0.5087168]
[1771307570157,16.88,86.319,86.286,0.53133652]
[1771307570158,0.5351478,86.316,86.286,0.53133652]
[1771307570578,0.5351478,86.316,86.285,11.58949991]
[1771307570579,0.5351478,86.334,86.301,0.53133652]
[1771307570758,11.58181378,86.343,86.311,0.53133652]
[1771307571177,0.5351478,86.342,86.311,0.53133652]
[1771307571963,12.11713086,86.341,86.311,0.53133652]
[1771307572159,0.5351478,86.34,86.311,0.53133652]
[1771307572882,0.5351478,86.34,86.313,0.53133652]
[1771307575080,0.5351478,86.338,86.301,0.53133652]
[1771307581685,0.5351478,86.343,86.303,0.53133652]
[1771307581882,16.9,86.34,86.303,0.53133652]
[1771307582084,16.9,86.34,86.311,0.53133652]
[1771307583592,0.5351478,86.372,86.333,0.53133652]
[1771307583794,0.5351478,86.372,86.341,0.53133652]
[1771307585176,0.5351478,86.387,86.351,0.53133652]
[1771307585592,0.5351478,86.387,86.332,40.54116665]
[1771307585593,0.5351478,86.386,86.353,0.53133652]
[1771307585784,0.5351478,86.379,86.341,0.53133652]
[1771307586879,0.5351478,86.379,86.343,0.53133652]
[1771307587197,0.5351478,86.377,86.343,0.53133652]
[1771307588394,0.5351478,86.385,86.345,0.53133652]
[1771307588777,11.57621781,86.384,86.345,0.53133652]
[1771307588972,0.5351478,86.383,86.345,0.53133652]
[1771307590883,11.57648584,86.382,86.346,11.58131239]
[1771307591079,0.5351478,86.381,86.347,0.53133652]
[1771307592678,0.5351478,86.379,86.342,0.53133652]
[1771307592884,11.57836235,86.368,86.332,0.53133652]
[1771307593099,0.5351478,86.367,86.332,0.53133652]
[1771307593599,0.5351478,86.359,86.326,12.1152998]
[1771307594174,0.5351478,86.359,86.327,0.51006229]
[1771307595998,11.57970309,86.358,86.327,0.51006229]
[1771307596199,0.51109218,86.357,86.329,0.51006229]
[1771307597902,11.57849641,86.367,86.329,0.51006229]
[1771307598099,0.51109218,86.364,86.331,0.51006229]
[1771307600586,0.51109218,86.359,86.326,0.51006229]
[1771307601191,0.51109218,86.359,86.32,11.58474063]
[1771307601399,0.51109218,86.349,86.321,0.51006229]
[1771307602499,0.51109218,86.349,86.323,0.51006229]
[1771307602702,0.51109218,86.358,86.323,0.51006229]
[1771307603507,12.09079527,86.358,86.323,0.51006229]
[1771307603709,0.51109218,86.357,86.323,0.51006229]
[1771307604497,0.51109218,86.355,86.325,0.51006229]
[1771307605397,0.51109218,86.349,86.315,0.51006229]
[1771307607018,0.51109218,86.349,86.317,0.51006229]
[1771307608402,11.58104414,86.348,86.317,0.51006229]
[1771307608613,0.51109218,86.347,86.317,0.51006229]
[1771307609616,0.51109218,86.347,86.319,0.51006229]
[1771307610400,0.51109218,86.353,86.319,0.51006229]
[1771307610712,11.58050768,86.352,86.319,0.51006229]
[1771307610915,12.09159986,86.352,86.319,0.51006229]
[1771307611806,17.41109218,86.355,86.321,0.51006229]
[1771307612006,0.51109218,86.353,86.321,0.51006229]
[1771307616992,0.51109218,86.351,86.321,0.51006229]
[1771307619425,0.51109218,86.349,86.321,0.51006229]
[1771307626022,0.51109218,86.349,86.323,0.53283911]
[1771307626210,0.51302998,86.347,86.323,0.53283911]
[1771307629628,0.52007869,86.345,86.323,0.53283911]
[1771307630024,3.28421298,86.35,86.325,0.50835534]
[1771307630321,11.58046556,86.353,86.325,0.50835534]
[1771307630728,12.10054425,86.353,86.325,0.50835534]
[1771307632713,11.58064179,86.351,86.325,0.50835534]
[1771307633818,0.52007869,86.35,86.325,0.50835534]
[1771307635631,11.58064179,86.351,86.325,0.50835534]
[1771307635933,0.52007869,86.354,86.327,0.50835534]
[1771307636834,16.96,86.391,86.327,0.50835534]
[1771307637031,16.96,86.391,86.326,11.58399555]
[1771307637032,0.52007869,86.399,86.358,0.50835534]
[1771307637363,0.52007869,86.389,86.358,0.50835534]
[1771307637632,0.52007869,86.389,86.36,0.50835534]
[1771307639128,0.52007869,86.389,86.36,3.79256832]
[1771307639315,0.52007869,86.389,86.361,0.50835534]
[1771307640448,0.52007869,86.379,86.341,0.50835534]
[1771307640743,0.52007869,86.359,86.331,12.09167998]
[1771307640923,0.52007869,86.359,86.332,0.50835534]
[1771307641747,0.52007869,86.359,86.32,3.28421298]
[1771307641748,0.52007869,86.359,86.325,0.50835534]
[1771307643454,0.52007869,86.359,86.32,3.28421298]
[1771307643455,0.52007869,86.349,86.318,0.50835534]
[1771307644456,0.52007869,86.349,86.299,28.96891664]
[1771307644631,0.52007869,86.339,86.306,0.50835534]
[1771307645458,0.52007869,86.339,86.3,14.87169849]
[1771307645459,11.5823855,86.338,86.308,0.50835534]
[1771307645627,0.52007869,86.337,86.308,0.50835534]
[1771307648436,0.52007869,86.335,86.308,0.50835534]
[1771307651327,0.52007869,86.333,86.308,0.50835534]
[1771307653453,0.52007869,86.331,86.309,0.50835534]
[1771307655548,0.5135188,86.329,86.309,0.50835534]
[1771307657849,11.58345882,86.33,86.289,28.97219682]
[1771307657850,0.5135188,86.327,86.304,0.52394426]
[1771307658045,0.5135188,86.327,86.292,0.52394426]
[1771307659649,0.52489714,86.309,86.273,28.97752574]
[1771307660754,0.52489714,86.309,86.274,11.59097758]
[1771307661133,0.52489714,86.307,86.274,11.59097758]
[1771307661546,0.52489714,86.307,86.275,0.07505334]
[1771307663157,0.52489714,86.318,86.281,0.07576347]
[1771307664957,0.52489714,86.318,86.282,0.07769352]
[1771307665147,0.52489714,86.316,86.282,0.07769352]
[1771307669868,0.52489714,86.309,86.275,11.59078504]
[1771307670760,11.58641145,86.308,86.273,0.08680596]
[1771307670959,0.52489714,86.307,86.273,0.08680596]
[1771307671779,11.58399555,86.326,86.291,0.08826423]
[1771307672075,0.52489714,86.325,86.291,0.08826423]
[1771307672772,0.52489714,86.325,86.291,11.58869407]
[1771307672972,0.52489714,86.323,86.292,0.08970575]
[1771307674070,3.28421298,86.32,86.285,0.09113072]
[1771307674376,0.52489714,86.319,86.282,0.09113072]
[1771307675572,0.52489714,86.317,86.282,0.09113072]
[1771307677179,0.52489714,86.315,86.282,0.09113072]
[1771307677776,0.52489714,86.315,86.282,0.09666877]
[1771307680491,11.58560604,86.314,86.282,0.09666877]
[1771307680665,0.52489714,86.313,86.282,0.09666877]
[1771307681485,16.92,86.341,86.28,43.8497776]
[1771307681486,0.52489714,86.322,86.291,0.10065757]
[1771307682583,0.52489714,86.322,86.292,0.10195674]
[1771307683993,0.52489714,86.32,86.292,0.10195674]
[1771307684287,0.54587503,86.319,86.281,0.10576541]
[1771307685590,0.54587503,86.317,86.281,0.10576541]
[1771307685767,0.54587503,86.309,86.274,0.10823217]
[1771307686983,0.54587503,86.299,86.274,0.10823217]
[1771307687685,0.54587503,86.297,86.268,0.10944434]
[1771307688495,0.54587503,86.297,86.27,3.28421298]
[1771307688785,0.54587503,86.297,86.271,0.11064258]
[1771307693089,0.54072289,86.295,86.264,11.59232124]
[1771307695288,0.54072289,86.293,86.264,11.59232124]
[1771307695793,0.54072289,86.293,86.263,0.11754852]
[1771307695975,0.54072289,86.289,86.252,0.12082607]
[1771307698695,0.54072289,86.287,86.252,0.12082607]
[1771307700293,3.28757395,86.28,86.246,0.12502313]
[1771307700591,0.54072289,86.267,86.241,0.12502313]
[1771307700805,0.54072289,86.279,86.251,0.12604244]
[1771307701694,0.54072289,86.292,86.261,0.12604244]
[1771307702898,0.54072289,86.292,86.261,11.5927244]
[1771307703079,0.54072289,86.292,86.262,0.12804607]
[1771307705179,0.54072289,86.29,86.262,0.12804607]
[1771307706585,0.54072289,86.29,86.261,11.5927244]
[1771307708000,0.54072289,86.29,86.262,0.13285722]
[1771307713905,3.28757395,86.31,86.27,3.28757395]
[1771307714097,40.5256759,86.365,86.301,0.58257678]
[1771307714287,16.8,86.363,86.311,0.58257678]
[1771307714607,4.61729252,86.36,86.311,0.58257678]
[1771307715114,3.28757395,86.36,86.311,0.58257678]
[1771307715415,16.8,86.363,86.321,0.58257678]
[1771307715587,3.28757395,86.36,86.321,0.58257678]
[1771307715908,11.57970309,86.358,86.321,0.58257678]
[1771307716083,0.56570643,86.357,86.321,0.58257678]
[1771307717909,11.57997128,86.356,86.321,0.58257678]
[1771307718094,0.56570643,86.355,86.321,0.58257678]
[1771307719111,0.56570643,86.353,86.321,0.58257678]
[1771307719492,0.56570643,86.353,86.317,11.58508194]
[1771307719692,0.56570643,86.349,86.31,3.28757395]
[1771307719893,40.53083816,86.354,86.292,28.97130744]
[1771307719894,0.56570643,86.339,86.3,3.28757395]
[1771307720096,0.56570643,86.339,86.301,11.58730873]
[1771307720897,0.56570643,86.339,86.3,3.28757395]
[1771307721113,0.56570643,86.336,86.3,3.28757395]
[1771307721721,0.56570643,86.329,86.287,12.17177606]
[1771307722014,0.56570643,86.319,86.275,11.59082586]
[1771307722213,0.56570643,86.319,86.275,12.17340264]
[1771307722405,0.56570643,86.319,86.28,3.28757395]
[1771307722902,0.56570643,86.319,86.28,3.87015073]
[1771307723108,0.56570643,86.319,86.281,0.58257678]
[1771307723513,0.56570643,86.315,86.281,0.58257678]
[1771307724322,0.56570643,86.299,86.262,0.58257678]
[1771307724501,0.56570643,86.289,86.259,0.58257678]
[1771307725022,0.56570643,86.289,86.253,11.59374194]
[1771307725513,0.56570643,86.289,86.254,0.58257678]
[1771307725718,0.56570643,86.298,86.27,3.28757395]
[1771307725911,0.56570643,86.296,86.262,0.58257678]
[1771307726514,0.56570643,86.289,86.255,11.5935308]
[1771307727021,0.56570643,86.289,86.25,3.28757395]
[1771307727500,0.56570643,86.289,86.25,3.87015073]
[1771307728522,0.56570643,86.287,86.251,11.59406847]
[1771307728818,0.56570643,86.287,86.251,12.17664525]
[1771307729521,0.56570643,86.287,86.252,0.58257678]
[1771307729708,0.56570643,86.285,86.252,0.58257678]
[1771307731119,0.56570643,86.283,86.252,0.58257678]
[1771307732723,0.56570643,86.283,86.261,0.58257678]
[1771307733715,0.56570643,86.283,86.262,11.59259001]
[1771307733921,0.56570643,86.283,86.263,0.58257678]
[1771307734506,0.56570643,86.283,86.26,3.28757395]
[1771307737309,0.56570643,86.283,86.26,3.87015073]
[1771307738807,0.56570643,86.283,86.261,11.5927244]
[1771307739008,0.56570643,86.283,86.262,0.58257678]
[1771307739926,0.56570643,86.292,86.263,11.59245562]
[1771307740124,0.56570643,86.292,86.264,0.58257678]
[1771307740327,0.56570643,86.304,86.264,0.58257678]
[1771307740506,0.56570643,86.304,86.281,0.58257678]
[1771307740712,0.56570643,86.312,86.281,0.58257678]
[1771307740909,0.56570643,86.312,86.29,3.28757395]
[1771307741116,0.56570643,86.312,86.29,3.87015073]
[1771307741429,0.56570643,86.312,86.29,3.28757395]
[1771307741727,0.56570643,86.312,86.274,0.58257678]
[1771307742826,0.56570643,86.309,86.274,11.59091629]
[1771307745315,0.53090654,86.307,86.274,11.59091629]
[1771307746636,0.53090654,86.307,86.274,12.13187714]
[1771307746945,0.53090654,86.307,86.274,0.54096085]
[1771307747822,0.53090654,86.305,86.274,0.54096085]
[1771307748137,0.53090654,86.305,86.276,0.54096085]
[1771307749955,0.53090654,86.305,86.281,0.56068851]
[1771307750251,0.53090654,86.305,86.277,11.59057454]
[1771307750252,0.53154962,86.316,86.291,0.56068851]
[1771307751932,0.53154962,86.314,86.291,0.56068851]
[1771307762043,0.53154962,86.299,86.271,0.56068851]
[1771307762732,0.53154962,86.297,86.263,0.56068851]
[1771307762933,0.53154962,86.295,86.263,0.56068851]
[1771307766247,0.53154962,86.293,86.263,0.56068851]
[1771307767247,0.53154962,86.289,86.263,0.56068851]
[1771307769046,0.53154962,86.287,86.256,0.56068851]
[1771307771938,0.53154962,86.287,86.258,0.56068851]
[1771307774442,0.53064158,86.285,86.258,0.56068851]
[1771307774845,11.58870976,86.291,86.261,0.51898693]
[1771307775249,11.58870976,86.291,86.271,0.51898693]
[1771307776553,0.53064158,86.291,86.271,0.51898693]
[1771307778559,11.58882836,86.29,86.271,0.51898693]
[1771307778738,12.11946994,86.29,86.271,0.51898693]
[1771307779553,11.58882836,86.29,86.271,0.51898693]
[1771307779740,0.53064158,86.289,86.271,0.51898693]
[1771307782966,17.49064158,86.3,86.271,0.51898693]
[1771307783163,17.49064158,86.3,86.281,0.51898693]
[1771307783468,11.58761978,86.299,86.281,0.51898693]
[1771307785652,12.11826136,86.299,86.281,0.51898693]
[1771307789078,11.58761978,86.299,86.281,0.51898693]
[1771307789252,0.53064158,86.298,86.281,0.51898693]
[1771307793677,16.96,86.3,86.281,0.51898693]
[1771307793860,0.53064158,86.315,86.291,0.02922857]
[1771307794068,0.53064158,86.313,86.291,0.02922857]
[1771307794263,0.53064158,86.313,86.283,0.02922857]
[1771307795584,0.53064158,86.309,86.283,0.02922857]
[1771307797283,11.58641145,86.308,86.283,0.02922857]
[1771307797674,12.11705303,86.308,86.283,0.02922857]
[1771307798077,0.53064158,86.307,86.283,0.02922857]
[1771307799582,0.53064158,86.319,86.283,0.02922857]
[1771307801365,0.53064158,86.317,86.283,0.02922857]
[1771307802763,0.53064158,86.317,86.291,0.02230468]
[1771307807390,17.02,86.326,86.3,3.28668207]
[1771307807593,0.52460232,86.339,86.3,3.28668207]
[1771307808092,0.52460232,86.338,86.3,3.28668207]
[1771307809094,17.54460232,86.345,86.283,15.46]
[1771307809283,0.52460232,86.348,86.32,14.87140011]
[1771307809594,0.52783315,86.355,86.32,14.87140011]
[1771307811478,0.52783315,86.354,86.32,14.87140011]
[1771307812793,0.52783315,86.359,86.33,3.28668207]
[1771307813294,17.02,86.363,86.33,3.28668207]
[1771307813690,0.52783315,86.361,86.33,3.28668207]
[1771307813877,0.52783315,86.361,86.33,3.28264849]
[1771307814775,0.52783315,86.361,86.331,11.58332464]
[1771307815897,0.52783315,86.361,86.34,3.28264849]
[1771307817510,17.02,86.376,86.34,14.86471063]
[1771307817511,0.52783315,86.373,86.34,14.86471063]
[1771307818892,0.52783315,86.369,86.33,3.28264849]
[1771307820181,0.52783315,86.367,86.34,3.28264849]
[1771307820607,0.52783315,86.367,86.331,11.58332464]
[1771307821685,0.52783315,86.367,86.34,3.28264849]
[1771307823086,17.0,86.374,86.35,3.28264849]
[1771307823087,0.52783315,86.373,86.35,3.28264849]
[1771307823704,11.57699618,86.379,86.35,3.28264849]
[1771307823903,11.57699618,86.379,86.341,11.58198306]
[1771307823904,0.1,86.38,86.36,3.28264849]
[1771307824208,0.52783315,86.379,86.36,3.28264849]
[1771307825018,0.1,86.38,86.36,3.28264849]
[1771307825510,0.62783315,86.38,86.36,3.28264849]
[1771307826209,0.62783315,86.38,86.352,11.58042907]
[1771307827192,0.62783315,86.38,86.36,3.28264849]
[1771307830002,0.1,86.38,86.36,3.28264849]
[1771307830204,0.1,86.38,86.361,11.57930084]
[1771307830413,0.1,86.38,86.36,3.28264849]
[1771307832604,0.1,86.38,86.36,14.86204042]
[1771307833507,0.1,86.38,86.37,3.28264849]
[1771307835423,0.1,86.38,86.371,11.57796019]
[1771307836114,0.1,86.39,86.371,11.57796019]
[1771307836421,0.1,86.39,86.38,3.28264849]
[1771307837720,0.1,86.4,86.39,3.28264849]
[1771307838098,0.1,86.41,86.39,3.28264849]
[1771307838307,0.1,86.41,86.4,3.28264849]
[1771307838915,0.1,86.42,86.4,3.28264849]
[1771307839527,0.1,86.42,86.401,11.57394011]
[1771307839704,0.1,86.42,86.41,3.28264849]
[1771307840406,0.1,86.42,86.401,11.57394011]
[1771307842923,0.1,86.42,86.41,3.28264849]
[1771307844912,0.1,86.42,86.41,14.85528954]
[1771307845413,0.1,86.43,86.41,14.85528954]
[1771307845619,0.52460232,86.429,86.41,11.57264105]
[1771307845813,0.52460232,86.428,86.402,15.48]
[1771307846016,0.52460232,86.428,86.401,11.57394011]
[1771307848227,0.52460232,86.426,86.39,3.28264849]
[1771307848533,0.52460232,86.426,86.384,28.94049803]
[1771307848534,0.52460232,86.417,86.38,14.85931535]
[1771307849036,0.52460232,86.409,86.375,11.57741289]
[1771307851034,11.57300249,86.408,86.371,11.57796019]
[1771307851230,0.52460232,86.399,86.36,3.28264849]
[1771307852029,0.52460232,86.407,86.36,40.52790082]
[1771307852209,0.52460232,86.407,86.37,3.28264849]
[1771307852630,0.52460232,86.399,86.36,14.86196201]
[1771307853428,0.52460232,86.397,86.36,14.86196201]
[1771307855524,0.52460232,86.395,86.36,14.86196201]
[1771307868415,3.28264849,86.4,86.37,3.28264849]
[1771307868743,0.52460232,86.402,86.38,3.28264849]
[1771307869836,0.52460232,86.399,86.373,11.57757807]
[1771307870025,0.52460232,86.399,86.361,11.57930084]
[1771307871544,0.52460232,86.397,86.361,11.57930084]
[1771307875948,0.52460232,86.395,86.361,11.57930084]
[1771307876548,0.52460232,86.395,86.37,3.28030586]
[1771307877745,0.52460232,86.395,86.361,11.57930084]
[1771307879647,0.52460232,86.395,86.37,14.85836581]
[1771307882339,0.52460232,86.393,86.36,14.85963518]
[1771307893551,0.52460232,86.389,86.35,3.28030586]
[1771307894453,0.52460232,86.389,86.36,3.28030586]
[1771307897864,0.52460232,86.387,86.355,11.58003427]
[1771307902250,0.52460232,86.385,86.351,11.58064179]
[1771307904074,11.57621781,86.384,86.351,11.58064179]
[1771307904271,11.57621781,86.384,86.34,3.28030586]
[1771307904272,0.52460232,86.379,86.34,3.28030586]
[1771307905548,0.52460232,86.377,86.34,3.28030586]
[1771307905760,0.52460232,86.377,86.341,11.58198306]
[1771307907779,0.52460232,86.375,86.341,11.58198306]
[1771307915766,0.52460232,86.375,86.339,15.58]
[1771307915767,0.52460232,86.359,86.32,3.48030586]
[1771307916073,0.52460232,86.349,86.32,0.2]
[1771307916779,0.52460232,86.339,86.32,0.2]
[1771307917285,0.52460232,86.337,86.32,0.2]
[1771307919692,0.52460232,86.329,86.292,0.16806372]
[1771307919887,0.49256984,86.319,86.281,0.16786537]
[1771307920590,0.49256984,86.317,86.282,11.75776824]
[1771307920771,0.49256984,86.309,86.277,0.16786537]
[1771307921467,3.28030586,86.3,86.275,11.59082245]
[1771307921674,0.49256984,86.299,86.275,11.59082245]
[1771307922277,0.49256984,86.299,86.281,0.16747549]
[1771307922484,0.49256984,86.306,86.281,0.16747549]
[1771307924578,0.48002182,86.312,86.283,0.16690731]
[1771307925591,0.48002182,86.311,86.283,0.16690731]
[1771307928171,0.48002182,86.309,86.283,0.16690731]
[1771307928375,0.48002182,86.309,86.283,11.75659523]
[1771307929090,0.48002182,86.309,86.284,0.16600301]
[1771307930377,0.48002182,86.309,86.285,11.58949991]
[1771307933314,0.48002182,86.309,86.286,0.16514947]
[1771307934690,0.48002182,86.309,86.287,11.58923128]
[1771307936807,0.48002182,86.309,86.288,0.16450126]
[1771307937904,0.48002182,86.309,86.289,0.16434384]
[1771307938109,0.48002182,86.309,86.284,0.16434384]
[1771307940206,0.48002182,86.309,86.286,0.16403439]
[1771307944497,0.48002182,86.309,86.288,0.16343654]
[1771307946511,0.48002182,86.309,86.284,0.16314781]
[1771307946699,0.48009797,86.319,86.291,0.16314781]
[1771307951804,0.48009797,86.317,86.291,0.16314781]
[1771307953906,0.48009797,86.315,86.291,0.16314781]
[1771307956707,0.48009797,86.315,86.292,0.16167374]
[1771307974044,0.46385642,86.326,86.292,0.16167374]
[1771307974340,0.46385642,86.326,86.301,0.15963135]
[1771307974835,11.58265381,86.336,86.281,40.56513021]
[1771307974836,0.46385642,86.309,86.282,0.15952986]
[1771307975421,16.92,86.323,86.291,0.47039204]
[1771307976237,16.92,86.323,86.293,0.47039204]
[1771307977424,0.46385642,86.322,86.294,11.58829119]
[1771307977618,0.46385642,86.322,86.295,0.47039204]
[1771307979718,0.46385642,86.33,86.301,0.47039204]
[1771307980116,0.46385642,86.329,86.301,0.47039204]
[1771307981514,0.46385642,86.329,86.302,11.58721698]
[1771307981833,0.46385642,86.329,86.303,0.47039204]
[1771307983742,0.46385642,86.329,86.305,0.47039204]
[1771307984314,0.45424396,86.336,86.31,3.28658861]
[1771307984626,0.45424396,86.359,86.321,0.46858029]
[1771307984814,0.45424396,86.358,86.321,0.46858029]
[1771307985539,0.45424396,86.356,86.322,0.46858029]
[1771307985737,0.45424396,86.349,86.322,0.46858029]
[1771307985924,0.45424396,86.349,86.317,0.46858029]
[1771307989120,0.45424396,86.349,86.321,0.46858029]
[1771307990122,0.49904602,86.347,86.321,0.46858029]
[1771307992343,0.49904602,86.347,86.316,0.45910507]
[1771307992636,0.49904602,86.347,86.301,11.58735124]
[1771307992637,0.49904602,86.339,86.302,0.45910507]
[1771307994439,0.49904602,86.337,86.304,0.45910507]
[1771307997343,0.49904602,86.337,86.306,0.45910507]
[1771307998444,0.49904602,86.335,86.306,0.45910507]
[1771307999230,0.49904602,86.335,86.31,3.28658861]
[1771307999632,0.49904602,86.335,86.31,3.74569368]
[1771308000052,0.49904602,86.335,86.31,3.74396577]
[1771308001146,0.49904602,86.335,86.311,0.45910507]
[1771308001352,0.49904602,86.345,86.321,0.45910507]
[1771308001549,0.49904602,86.357,86.331,0.45910507]
[1771308001729,0.49904602,86.369,86.341,0.45910507]
[1771308001934,0.49904602,86.368,86.341,0.45910507]
[1771308003257,16.92,86.379,86.332,0.45910507]
[1771308003258,0.49904602,86.366,86.332,0.45910507]
[1771308003558,11.57849641,86.367,86.304,0.45910507]
[1771308003559,0.49904602,86.339,86.304,0.45910507]
[1771308005238,0.49904602,86.337,86.306,0.45910507]
[1771308006750,0.49904602,86.335,86.298,0.45910507]
[1771308006951,0.49904602,86.335,86.301,12.04645631]
[1771308007149,0.49904602,86.335,86.302,0.45910507]
[1771308007555,11.58208601,86.341,86.311,0.45910507]
[1771308007941,0.49904602,86.34,86.311,0.45910507]
[1771308009560,0.49904602,86.345,86.321,0.45910507]
[1771308010847,0.49904602,86.351,86.33,3.74396577]
[1771308011356,0.49904602,86.351,86.33,0.45910507]
[1771308011544,0.49904602,86.351,86.331,11.58332464]
[1771308013246,0.49904602,86.351,86.33,0.45910507]
[1771308013862,0.49904602,86.351,86.33,12.04255132]
[1771308014063,0.49904602,86.357,86.331,0.45910507]
[1771308014278,0.49527586,86.366,86.341,0.47375714]
[1771308014440,0.49527586,86.373,86.351,0.47375714]
[1771308017056,0.49527586,86.372,86.351,0.47375714]
[1771308021648,0.49527586,86.372,86.352,11.58050768]
[1771308021849,0.49527586,86.372,86.353,0.47375714]
[1771308022249,0.49527586,86.372,86.355,0.47375714]
[1771308024450,0.49527586,86.388,86.357,0.47375714]
[1771308024672,0.49527586,86.403,86.371,0.47375714]
[1771308024856,0.49527586,86.402,86.371,0.47375714]
[1771308025252,0.49527586,86.402,86.381,0.47375714]
[1771308025456,0.1,86.41,86.391,0.47375714]
[1771308026666,0.1,86.41,86.401,0.47375714]
[1771308026859,0.49527586,86.425,86.401,0.47375714]
[1771308027070,0.49527586,86.434,86.401,0.47375714]
[1771308027282,0.49527586,86.436,86.411,0.47375714]
[1771308028177,0.49527586,86.448,86.421,0.47375714]
[1771308029070,0.49527586,86.446,86.42,3.2848607]
[1771308029278,0.49527586,86.446,86.419,11.99064839]
[1771308029474,0.49527586,86.446,86.419,11.57147535]
[1771308029862,0.49527586,86.446,86.421,0.41912111]
[1771308030460,0.49527586,86.446,86.419,11.57147535]
[1771308031176,0.49527586,86.446,86.42,3.2848607]
[1771308031776,0.49527586,86.446,86.421,0.41906977]
[1771308032466,0.49527586,86.444,86.421,0.41906977]
[1771308033679,0.49527586,86.444,86.411,0.41896887]
[1771308033988,0.49527586,86.444,86.42,3.2848607]
[1771308034362,0.49527586,86.444,86.42,3.70377998]
[1771308035485,0.49527586,86.444,86.42,3.70373096]
[1771308036584,0.49527586,86.444,86.422,0.41882181]
[1771308036765,0.49527586,86.451,86.422,0.41882181]
[1771308036963,0.49527586,86.451,86.43,3.2848607]
[1771308037179,0.49527586,86.451,86.43,3.70363461]
[1771308037368,0.49527586,86.451,86.431,0.41877391]
[1771308037997,0.49527586,86.451,86.42,14.8561731]
[1771308038964,3.2848607,86.44,86.401,28.93456163]
[1771308039170,0.49527586,86.439,86.411,0.41867976]
[1771308039991,3.2848607,86.42,86.389,0.4186335]
[1771308040167,0.49527586,86.419,86.389,0.4186335]
[1771308040368,0.49527586,86.419,86.391,0.4186335]
[1771308041081,0.49527586,86.419,86.393,0.41858776]
[1771308042984,11.57036994,86.428,86.401,0.41849787]
[1771308043787,12.0656458,86.428,86.401,0.41849787]
[1771308044089,0.49527586,86.427,86.401,0.41849787]
[1771308045189,0.49786923,86.419,86.388,15.74]
[1771308045370,0.49786923,86.419,86.39,3.2848607]
[1771308045772,3.2848607,86.43,86.388,16.15836685]
[1771308045773,0.49786923,86.435,86.401,0.41832418]
[1771308047088,0.49786923,86.441,86.411,0.418282]
[1771308047585,0.49786923,86.439,86.402,11.57380616]
[1771308049686,0.49786923,86.437,86.402,11.57380616]
[1771308049894,0.49786923,86.437,86.403,0.41811807]
[1771308051693,0.49786923,86.437,86.404,11.99161651]
[1771308052591,0.48246958,86.435,86.405,0.4180389]
[1771308054384,0.48246958,86.435,86.406,11.57327037]
[1771308054595,0.48246958,86.435,86.406,11.9912319]
[1771308054773,0.48246958,86.435,86.407,0.41796153]
[1771308057186,0.48246958,86.435,86.408,11.57300249]
[1771308057390,0.48246958,86.435,86.409,0.41784879]
[1771308060385,0.48246958,86.433,86.409,0.41784879]
[1771308060587,0.48246958,86.429,86.391,0.41773989]
[1771308060894,0.48246958,86.429,86.391,11.57516608]
[1771308061200,0.48246958,86.429,86.392,0.41770442]
[1771308062298,0.48246958,86.429,86.391,11.57516608]
[1771308062299,0.48246958,86.427,86.394,0.41766936]
[1771308064281,0.48246958,86.437,86.401,0.41760044]
[1771308066503,0.48246958,86.437,86.403,0.41753309]
[1771308066817,0.48246958,86.437,86.403,0.34753309]